{"text_format":"3","workbook":"xlsx","n_sheets":2,"sheets":["Dados","Gráfico"],"not_rendered":{"charts":1,"defined_names":2},"read":"whole","date_system":"1900"}

{"sheet":"Dados","index":0,"n_rows":23,"n_cols":9,"rows_kept":23}
["Mês","Valor Planejado(PV)","Custo Atual(AC)","Valor Agregado(EV)","-","Variação do Custo CV (CV = EV - AC)","Variação do Cronograma SV (SV = EV – PV)","Indice de Desempenho do Custo CPI (CPI = EV/AC)","Índice de Desempenho do Cronograma SPI (SPI = EV/PV)"]
["Janeiro",0,0,0,null,{"$f":"D2-C2","v":0},{"$f":"Tabela1[[#This Row],[Valor Agregado(EV)]]-Tabela1[[#This Row],[Valor Planejado(PV)]]","v":0},{"$f":"Tabela1[[#This Row],[Valor Agregado(EV)]]/Tabela1[[#This Row],[Custo Atual(AC)]]","v":{"$error":"#DIV/0!"}},{"$f":"Tabela1[[#This Row],[Valor Agregado(EV)]]/Tabela1[[#This Row],[Valor Planejado(PV)]]","v":{"$error":"#DIV/0!"}}]
["Fevereiro",0,0,0,null,{"$f":"D3-C3","v":0},{"$f":"Tabela1[[#This Row],[Valor Agregado(EV)]]-Tabela1[[#This Row],[Valor Planejado(PV)]]","v":0},{"$f":"Tabela1[[#This Row],[Valor Agregado(EV)]]/Tabela1[[#This Row],[Custo Atual(AC)]]","v":{"$error":"#DIV/0!"}},{"$f":"Tabela1[[#This Row],[Valor Agregado(EV)]]/Tabela1[[#This Row],[Valor Planejado(PV)]]","v":{"$error":"#DIV/0!"}}]
["Março",0,0,0,null,0,{"$f":"Tabela1[[#This Row],[Valor Agregado(EV)]]-Tabela1[[#This Row],[Valor Planejado(PV)]]","v":0},{"$f":"Tabela1[[#This Row],[Valor Agregado(EV)]]/Tabela1[[#This Row],[Custo Atual(AC)]]","v":{"$error":"#DIV/0!"}},{"$f":"Tabela1[[#This Row],[Valor Agregado(EV)]]/Tabela1[[#This Row],[Valor Planejado(PV)]]","v":{"$error":"#DIV/0!"}}]
["Abril",0,0,0,null,0,{"$f":"Tabela1[[#This Row],[Valor Agregado(EV)]]-Tabela1[[#This Row],[Valor Planejado(PV)]]","v":0},{"$f":"Tabela1[[#This Row],[Valor Agregado(EV)]]/Tabela1[[#This Row],[Custo Atual(AC)]]","v":{"$error":"#DIV/0!"}},{"$f":"Tabela1[[#This Row],[Valor Agregado(EV)]]/Tabela1[[#This Row],[Valor Planejado(PV)]]","v":{"$error":"#DIV/0!"}}]
["Maio",0,0,0,null,0,{"$f":"Tabela1[[#This Row],[Valor Agregado(EV)]]-Tabela1[[#This Row],[Valor Planejado(PV)]]","v":0},{"$f":"Tabela1[[#This Row],[Valor Agregado(EV)]]/Tabela1[[#This Row],[Custo Atual(AC)]]","v":{"$error":"#DIV/0!"}},{"$f":"Tabela1[[#This Row],[Valor Agregado(EV)]]/Tabela1[[#This Row],[Valor Planejado(PV)]]","v":{"$error":"#DIV/0!"}}]
["Junho",0,0,0,null,0,{"$f":"Tabela1[[#This Row],[Valor Agregado(EV)]]-Tabela1[[#This Row],[Valor Planejado(PV)]]","v":0},{"$f":"Tabela1[[#This Row],[Valor Agregado(EV)]]/Tabela1[[#This Row],[Custo Atual(AC)]]","v":{"$error":"#DIV/0!"}},{"$f":"Tabela1[[#This Row],[Valor Agregado(EV)]]/Tabela1[[#This Row],[Valor Planejado(PV)]]","v":{"$error":"#DIV/0!"}}]
["Julho",0,0,0,null,0,{"$f":"Tabela1[[#This Row],[Valor Agregado(EV)]]-Tabela1[[#This Row],[Valor Planejado(PV)]]","v":0},{"$f":"Tabela1[[#This Row],[Valor Agregado(EV)]]/Tabela1[[#This Row],[Custo Atual(AC)]]","v":{"$error":"#DIV/0!"}},{"$f":"Tabela1[[#This Row],[Valor Agregado(EV)]]/Tabela1[[#This Row],[Valor Planejado(PV)]]","v":{"$error":"#DIV/0!"}}]
["Agosto",0,0,0,null,0,{"$f":"Tabela1[[#This Row],[Valor Agregado(EV)]]-Tabela1[[#This Row],[Valor Planejado(PV)]]","v":0},{"$f":"Tabela1[[#This Row],[Valor Agregado(EV)]]/Tabela1[[#This Row],[Custo Atual(AC)]]","v":{"$error":"#DIV/0!"}},{"$f":"Tabela1[[#This Row],[Valor Agregado(EV)]]/Tabela1[[#This Row],[Valor Planejado(PV)]]","v":{"$error":"#DIV/0!"}}]
["Setembro",0,0,0,null,0,{"$f":"Tabela1[[#This Row],[Valor Agregado(EV)]]-Tabela1[[#This Row],[Valor Planejado(PV)]]","v":0},{"$f":"Tabela1[[#This Row],[Valor Agregado(EV)]]/Tabela1[[#This Row],[Custo Atual(AC)]]","v":{"$error":"#DIV/0!"}},{"$f":"Tabela1[[#This Row],[Valor Agregado(EV)]]/Tabela1[[#This Row],[Valor Planejado(PV)]]","v":{"$error":"#DIV/0!"}}]
["Outubro",0,0,0,null,0,{"$f":"Tabela1[[#This Row],[Valor Agregado(EV)]]-Tabela1[[#This Row],[Valor Planejado(PV)]]","v":0},{"$f":"Tabela1[[#This Row],[Valor Agregado(EV)]]/Tabela1[[#This Row],[Custo Atual(AC)]]","v":{"$error":"#DIV/0!"}},{"$f":"Tabela1[[#This Row],[Valor Agregado(EV)]]/Tabela1[[#This Row],[Valor Planejado(PV)]]","v":{"$error":"#DIV/0!"}}]
["Novembro",0,0,0,null,0,{"$f":"Tabela1[[#This Row],[Valor Agregado(EV)]]-Tabela1[[#This Row],[Valor Planejado(PV)]]","v":0},{"$f":"Tabela1[[#This Row],[Valor Agregado(EV)]]/Tabela1[[#This Row],[Custo Atual(AC)]]","v":{"$error":"#DIV/0!"}},{"$f":"Tabela1[[#This Row],[Valor Agregado(EV)]]/Tabela1[[#This Row],[Valor Planejado(PV)]]","v":{"$error":"#DIV/0!"}}]
["Dezembro",0,0,0,null,0,{"$f":"Tabela1[[#This Row],[Valor Agregado(EV)]]-Tabela1[[#This Row],[Valor Planejado(PV)]]","v":0},{"$f":"Tabela1[[#This Row],[Valor Agregado(EV)]]/Tabela1[[#This Row],[Custo Atual(AC)]]","v":{"$error":"#DIV/0!"}},{"$f":"Tabela1[[#This Row],[Valor Agregado(EV)]]/Tabela1[[#This Row],[Valor Planejado(PV)]]","v":{"$error":"#DIV/0!"}}]
["Janeiro",0,0,0,null,0,{"$f":"Tabela1[[#This Row],[Valor Agregado(EV)]]-Tabela1[[#This Row],[Valor Planejado(PV)]]","v":0},{"$f":"Tabela1[[#This Row],[Valor Agregado(EV)]]/Tabela1[[#This Row],[Custo Atual(AC)]]","v":{"$error":"#DIV/0!"}},{"$f":"Tabela1[[#This Row],[Valor Agregado(EV)]]/Tabela1[[#This Row],[Valor Planejado(PV)]]","v":{"$error":"#DIV/0!"}}]
["Fevereiro",0,0,0,null,0,{"$f":"Tabela1[[#This Row],[Valor Agregado(EV)]]-Tabela1[[#This Row],[Valor Planejado(PV)]]","v":0},{"$f":"Tabela1[[#This Row],[Valor Agregado(EV)]]/Tabela1[[#This Row],[Custo Atual(AC)]]","v":{"$error":"#DIV/0!"}},{"$f":"Tabela1[[#This Row],[Valor Agregado(EV)]]/Tabela1[[#This Row],[Valor Planejado(PV)]]","v":{"$error":"#DIV/0!"}}]
["Março",0,0,0,null,0,{"$f":"Tabela1[[#This Row],[Valor Agregado(EV)]]-Tabela1[[#This Row],[Valor Planejado(PV)]]","v":0},{"$f":"Tabela1[[#This Row],[Valor Agregado(EV)]]/Tabela1[[#This Row],[Custo Atual(AC)]]","v":{"$error":"#DIV/0!"}},{"$f":"Tabela1[[#This Row],[Valor Agregado(EV)]]/Tabela1[[#This Row],[Valor Planejado(PV)]]","v":{"$error":"#DIV/0!"}}]
["Abril",0,0,0,null,0,{"$f":"Tabela1[[#This Row],[Valor Agregado(EV)]]-Tabela1[[#This Row],[Valor Planejado(PV)]]","v":0},{"$f":"Tabela1[[#This Row],[Valor Agregado(EV)]]/Tabela1[[#This Row],[Custo Atual(AC)]]","v":{"$error":"#DIV/0!"}},{"$f":"Tabela1[[#This Row],[Valor Agregado(EV)]]/Tabela1[[#This Row],[Valor Planejado(PV)]]","v":{"$error":"#DIV/0!"}}]
["Maio",0,0,0,null,0,{"$f":"Tabela1[[#This Row],[Valor Agregado(EV)]]-Tabela1[[#This Row],[Valor Planejado(PV)]]","v":0},{"$f":"Tabela1[[#This Row],[Valor Agregado(EV)]]/Tabela1[[#This Row],[Custo Atual(AC)]]","v":{"$error":"#DIV/0!"}},{"$f":"Tabela1[[#This Row],[Valor Agregado(EV)]]/Tabela1[[#This Row],[Valor Planejado(PV)]]","v":{"$error":"#DIV/0!"}}]
["Junho",0,0,0,null,0,{"$f":"Tabela1[[#This Row],[Valor Agregado(EV)]]-Tabela1[[#This Row],[Valor Planejado(PV)]]","v":0},{"$f":"Tabela1[[#This Row],[Valor Agregado(EV)]]/Tabela1[[#This Row],[Custo Atual(AC)]]","v":{"$error":"#DIV/0!"}},{"$f":"Tabela1[[#This Row],[Valor Agregado(EV)]]/Tabela1[[#This Row],[Valor Planejado(PV)]]","v":{"$error":"#DIV/0!"}}]
["Julho",0,0,0,null,0,{"$f":"Tabela1[[#This Row],[Valor Agregado(EV)]]-Tabela1[[#This Row],[Valor Planejado(PV)]]","v":0},{"$f":"Tabela1[[#This Row],[Valor Agregado(EV)]]/Tabela1[[#This Row],[Custo Atual(AC)]]","v":{"$error":"#DIV/0!"}},{"$f":"Tabela1[[#This Row],[Valor Agregado(EV)]]/Tabela1[[#This Row],[Valor Planejado(PV)]]","v":{"$error":"#DIV/0!"}}]
["Agosto",0,0,0,null,0,{"$f":"Tabela1[[#This Row],[Valor Agregado(EV)]]-Tabela1[[#This Row],[Valor Planejado(PV)]]","v":0},{"$f":"Tabela1[[#This Row],[Valor Agregado(EV)]]/Tabela1[[#This Row],[Custo Atual(AC)]]","v":{"$error":"#DIV/0!"}},{"$f":"Tabela1[[#This Row],[Valor Agregado(EV)]]/Tabela1[[#This Row],[Valor Planejado(PV)]]","v":{"$error":"#DIV/0!"}}]
["Setembro",0,0,0,null,0,{"$f":"Tabela1[[#This Row],[Valor Agregado(EV)]]-Tabela1[[#This Row],[Valor Planejado(PV)]]","v":0},{"$f":"Tabela1[[#This Row],[Valor Agregado(EV)]]/Tabela1[[#This Row],[Custo Atual(AC)]]","v":{"$error":"#DIV/0!"}},{"$f":"Tabela1[[#This Row],[Valor Agregado(EV)]]/Tabela1[[#This Row],[Valor Planejado(PV)]]","v":{"$error":"#DIV/0!"}}]
["Outubro",0,0,0,null,0,{"$f":"Tabela1[[#This Row],[Valor Agregado(EV)]]-Tabela1[[#This Row],[Valor Planejado(PV)]]","v":0},{"$f":"Tabela1[[#This Row],[Valor Agregado(EV)]]/Tabela1[[#This Row],[Custo Atual(AC)]]","v":{"$error":"#DIV/0!"}},{"$f":"Tabela1[[#This Row],[Valor Agregado(EV)]]/Tabela1[[#This Row],[Valor Planejado(PV)]]","v":{"$error":"#DIV/0!"}}]

{"sheet":"Gráfico","index":1,"n_rows":0,"n_cols":0,"rows_kept":0}